Workbook

Sheet Sheet1
B1: Enkel de gele cellen aanpassen
B3: JE INKOMSTEN BEREKENEN VANAF DE TOTAALPRIJS VOOR DE CONSUMENT
D5: BTW 21 % | F5: BTW 9 % | H5: Geen BTW***
B6: Totaalprijs voor de Consument (incl. BTW) | D6: 9 | F6: 39.2 | H6: 9
B7: BTW | D7: =D6-D8 -> 1.561983471 | F7: =F6-F8 -> 3.236697248 | H7: =H6-H8 -> 0
B8: Prijs zonder belastingen (excl. BTW) | D8: =D6/1.21 -> 7.438016529 | F8: =F6/1.09 -> 35.96330275 | H8: =H6 -> 9
B9: Vergoeding Buurderij-Verantwoordelijke (excl. BTW) | D9: =D8*0.1 -> 0.7438016529 | F9: =F8*0.1 -> 3.596330275 | H9: =H8*0.1 -> 0.9 | L9: =F9/F8 -> 0.1
B10: Vergoeding Boeren & Buren (excl. BTW) | D10: =D8*0.13 -> 0.9669421488 | F10: =F8*0.13 -> 4.675229358 | H10: =H8*0.13 -> 1.17 | L10: =F10/F8 -> 0.13
B11: Je inkomsten na belastingen | D11: =D8-D9-D10 -> 5.727272727 | F11: =F8-F9-F10 -> 27.69174312 | H11: =H8-H9-H10 -> 6.93 | L11: BTW verschil producent | M11: =F13-F14 -> 3.236697248
L12: Totaal producent | M12: =F11+M11 -> 30.92844037
B13: Geïnde BTW | D13: =D7 -> 1.561983471 | F13: =F7 -> 3.236697248 | H13: =H7 -> 0 | L13: Percentage | M13: =M12/F6 -> 0.7889908257
B14: Boeren & Buren rekent geen BTW*. Gefactureerde of te liquideren BTW door de Buurderij-Verantwoordelijke** | D14: =D10*0 -> 0 | F14: =F10*0 -> 0 | H14: =H10*0 -> 0 | M14: =F14/F8 -> 0 | N14: =0.0835*0.21 -> 0.017535
C15: of | D15: =D9*0.21 -> 0.1561983471 | F15: =F9*0.21 -> 0.7552293578 | H15: =H9*0.21 -> 0.189 | M15: =F15/F8 -> 0.021 | N15: =0.0835*0.21*2 -> 0.03507
B17: Wat op je rekening wordt gestort | D17: =D6-D9-D10-D14 -> 7.289256198 | F17: =F6-F9-F10-F14 -> 30.92844037 | H17: =H6-H9-H10-H14 -> 6.93
C18: of | D18: =D6-D9-D10-D15 -> 7.133057851 | F18: =F6-F9-F10-F15 -> 30.17321101 | H18: =H6-H9-H10-H15 -> 6.741 | L18: =F17/F6 -> 0.7889908257 | M18: Percentage voor producent
F19: =F8-F9-F10+F13-F15 -> 30.17321101
F20: =F8-F9-F10+F13-F14 -> 30.92844037
B21: DE PRIJS VOOR DE CONSUMENT BEREKENEN OP BASIS VAN JE INKOMSTEN NA BELASTINGEN
D23: BTW 21 % | F23: BTW 9 % | H23: Geen BTW***
B24: Je inkomsten na belastingen | D24: 5.73 | F24: 80 | H24: 80 | L24: =F24/F27 -> 0.77
B25: Vergoeding Buurderij-Verantwoordelijke (excl. BTW) | D25: =D27*0.1 -> 0.7441558442 | F25: =F27*0.1 -> 10.38961039 | H25: =H27*0.1 -> 10.38961039 | L25: =F25/F27 -> 0.1
B26: Vergoeding Boeren & Buren (excl. BTW) | D26: =D27*0.13 -> 0.9674025974 | F26: =F27*0.13 -> 13.50649351 | H26: =H27*0.13 -> 13.50649351 | L26: =F26/F27 -> 0.13
B27: Prijs zonder belastingen (excl. BTW) | D27: =D24/0.77 -> 7.441558442 | F27: =F24/0.77 -> 103.8961039 | H27: =H24/0.77 -> 103.8961039
B28: BTW | D28: =D27*0.21 -> 1.562727273 | F28: =F27*0.09 -> 9.350649351 | H28: =H29*0 -> 0
B29: Totaalprijs voor de Consument (incl. BTW) | D29: =D27*1.21 -> 9.004285714 | F29: =F27+F28 -> 113.2467532 | H29: =H27 -> 103.8961039
B31: Geïnde BTW | D31: =D28 -> 1.562727273 | F31: =F28 -> 9.350649351 | H31: =H28 -> 0
B32: Boeren & Buren rekent geen BTW*. Gefactureerde of te liquideren BTW door de Buurderij-Verantwoordelijke** | D32: =D26*0 -> 0 | F32: =F26*0 -> 0 | H32: =H26*0 -> 0
C33: of | D33: =D25*0.21 -> 0.1562727273 | F33: =F25*0.21 -> 2.181818182 | H33: =H25*0.21 -> 2.181818182
B35: Wat op je rekening wordt gestort | D35: =D29-D26-D25-D33 -> 7.136454545 | F35: =F29-F26-F25-F33 -> 87.16883117 | H35: =H29-H26-H25-H33 -> 77.81818182
C36: of | D36: =D29-D26-D25-D32 -> 7.292727273 | F36: =F29-F26-F25-F32 -> 89.35064935 | H36: =H29-H26-H25-H32 -> 80
B38: *De vergoeding van de diensten aangeboden door Boeren & Buren wordt voorlopig gefactureerd door Equanum BVBA (een Belgische onderneming), die gezien het een intracommunautaire transactie betreft, vrijgesteld is van BTW.
B39: **De BTW wordt gefactureerd als je Buurderij-Verantwoordelijke een Nederlandse onderneming heeft die BTW-plichtig is (tarief van 21 % op de vergoeding voor diensten). Houd er rekening mee dat een deel van de Buurderij-Verantwoordelijken geen BTW factureren.
B40: *** Als je niet BTW-plichtig bent, zal je de gefactureerde BTW door de Buurderij-Verantwoordelijke en/of Boeren & Buren niet kunnen inbrengen. Gelieve hier rekening mee te houden tijdens het berekenen van je marges.
